fUSD/lending_fUSD_20250304
["ID","MTS","AMOUNT","RATE_DAILY","PERIOD"]
[355347753,1741072246580,-958.74,0.00012579,2]
[355347755,1741072246590,-4032.92,0.00012579,2]
[355347757,1741072246599,-500.0,0.00012579,2]
[355347758,1741072246609,-500.0,0.00012579,2]
[355347761,1741072246619,-2411.11,0.00012579,2]
[355347763,1741072246628,-838.35,0.00012579,2]
[355347765,1741072246637,-513.22896659,0.00012579,2]
[355347766,1741072246647,-1294.61,0.00012579,2]
[355347768,1741072246656,-2674.88,0.00012579,2]
[355347770,1741072246665,-3478.57,0.00012579,2]
[355347772,1741072246674,-517.44125246,0.00012579,2]
[355347774,1741072246684,-501.62735429,0.00012579,2]
[355347776,1741072246693,-344.31343664,0.00012579,2]
[355347778,1741072246702,-5936.93,0.00012579,2]
[355347780,1741072246711,-906.48,0.00012579,2]
[355347782,1741072246720,-500.0,0.00012579,2]
[355347784,1741072246729,-500.0,0.00012579,2]
[355347786,1741072246739,-500.0,0.00012579,2]
[355347788,1741072246748,-500.0,0.00012579,2]
[355347790,1741072246757,-500.0,0.00012579,2]
[355347792,1741072246766,-500.0,0.00012579,2]
[355347794,1741072246776,-500.0,0.00012579,2]
[355347796,1741072246785,-2331.79,0.00012579,2]
[355347798,1741072246795,-3605.22,0.00012579,2]
[355347800,1741072246804,-582.85,0.00012579,2]
[355347802,1741072246815,-500.0,0.00012579,2]
[355347804,1741072246825,-4195.17,0.00012579,2]
[355347806,1741072246835,-1405.44,0.00012579,2]
[355347808,1741072246844,-780.79,0.00012579,2]
[355347810,1741072246853,-1442.25,0.00012579,2]
[355347812,1741072246863,-3904.7,0.00012579,2]
[355347814,1741072246872,-500.0,0.00012579,2]
[355347816,1741072246887,-503.05852439,0.00012579,2]
[355347818,1741072246897,-500.0,0.00012579,2]
[355347820,1741072246906,-500.0,0.00012579,2]
[355347822,1741072246915,-500.0,0.00012579,2]
[355347824,1741072246925,-4604.47,0.00012579,2]
[355347826,1741072246935,-1604.87,0.00012579,2]
[355347828,1741072246945,-500.0,0.00012579,2]
[355347830,1741072246955,-1395.94,0.00012579,2]
[355347832,1741072246965,-500.0,0.00012579,2]
[355347834,1741072246974,-504.12279587,0.00012579,2]
[355347837,1741072246988,-1410.97,0.00012579,2]
[355347839,1741072246998,-2645.42,0.00012579,2]
[355347841,1741072247007,-1554.63,0.00012579,2]
[355347843,1741072247017,-500.0,0.00012579,2]
[355347845,1741072247026,-5459.86,0.00012579,2]
[355347847,1741072247036,-503.86900607,0.0001258,2]
[355347849,1741072247046,-503.93424974,0.0001258,2]
[355347851,1741072247056,-502.02682956,0.0001258,2]
[355347853,1741072247068,-500.0,0.0001258,2]
[355347855,1741072247079,-187.3111549,0.0001258,2]
[355347857,1741072247088,-532.13566886,0.0001258,2]
[355347859,1741072247098,-500.0,0.0001258,2]
[355347861,1741072247107,-502.90222636,0.0001258,2]
[355347863,1741072247119,-1000.0,0.0001258,2]
[355347865,1741072247130,-1000.0,0.0001258,2]
[355347867,1741072247139,-187.0,0.0001258,2]
[355347869,1741072247148,-503.04332839,0.0001258,2]
[355347871,1741072247158,-502.74154746,0.0001258,2]
[355347873,1741072247167,-516.61876544,0.0001258,2]
[355347875,1741072247176,-540.4626487,0.0001258,2]
[355347877,1741072247186,-500.0,0.0001258,2]
[355347879,1741072247196,-2266.62,0.0001258,2]
[355347881,1741072247205,-1764.26,0.0001258,2]
[355347883,1741072247215,-1272.34,0.0001258,2]
[355347885,1741072247224,-500.0,0.0001258,2]
[355347887,1741072247234,-988.51,0.0001258,2]
[355347889,1741072247244,-2013.23,0.0001258,2]
[355347891,1741072247253,-528.27353447,0.0001258,2]
[355347893,1741072247264,-1035.52,0.0001258,2]
[355347895,1741072247273,-1266.45,0.0001258,2]
[355347897,1741072247283,-500.0,0.0001258,2]
[355347899,1741072247293,-1829.28,0.0001258,2]
[355347901,1741072247302,-906.07,0.0001258,2]
[355347903,1741072247313,-2403.17,0.0001258,2]
[355347905,1741072247326,-1951.11,0.0001258,2]
[355347907,1741072247336,-1841.47,0.0001258,2]
[355347909,1741072247347,-1490.37,0.0001258,2]
[355347911,1741072247356,-2682.76,0.0001258,2]
[355347913,1741072247366,-1050.69,0.0001258,2]
[355347915,1741072247376,-946.98,0.0001258,2]
[355347917,1741072247386,-1522.95,0.0001258,2]
[355347919,1741072247396,-1747.38,0.0001258,2]
[355347921,1741072247406,-2402.58,0.0001258,2]
[355347923,1741072247416,-1065.96,0.0001258,2]
[355347925,1741072247425,-2587.12,0.0001258,2]
[355347927,1741072247435,-1215.24,0.0001258,2]
[355347929,1741072247445,-500.0,0.0001258,2]
[355347931,1741072247454,-1629.3,0.0001258,2]
[355347933,1741072247463,-711.36,0.0001258,2]
[355347935,1741072247473,-1800.23,0.0001258,2]
[355347937,1741072247482,-2905.5,0.0001258,2]
[355347939,1741072247492,-674.29,0.0001258,2]
[355347941,1741072247502,-500.0,0.0001258,2]
[355347943,1741072247511,-2016.87,0.0001258,2]
[355347945,1741072247520,-500.0,0.0001258,2]
[355347947,1741072247530,-1382.15,0.0001258,2]
[355347949,1741072247539,-500.0,0.0001258,2]
[355347951,1741072247548,-500.0,0.00012581,2]
[355347953,1741072247557,-236.32431817,0.00012583,2]
[355347955,1741072247569,-500.0,0.00012583,2]
[355347957,1741072247579,-500.0,0.00012583,2]
[355347959,1741072247588,-500.0,0.00012583,2]
[355347961,1741072247598,-500.0,0.00012583,2]
[355347963,1741072247607,-500.0,0.00012583,2]
[355347965,1741072247616,-500.0,0.00012583,2]
[355347967,1741072247626,-500.0,0.00012583,2]
[355347969,1741072247635,-500.0,0.00012583,2]
[355347971,1741072247644,-500.0,0.00012583,2]
[355347973,1741072247653,-224428.23728573,0.00012585,2]
[355347975,1741072247663,-53642.76049979,0.00012585,2]
[355347977,1741072247672,-274335.21057481,0.00012585,2]
[355347979,1741072247681,-20912.69880438,0.00012585,2]
[355347981,1741072247691,-564884.7954632,0.00012585,2]
[355347983,1741072247700,-371599.22399044,0.00012585,2]
[355347985,1741072247709,-1031.20056085,0.00012586,3]
[355347987,1741072247719,-1031.20056085,0.00012586,3]
[355347989,1741072247729,-1031.20056085,0.00012586,3]
[355347992,1741072247738,-20271.56,0.00012586,2]
[355347994,1741072247748,-4939.27,0.00012586,2]
[355347996,1741072247758,-308.48223448,0.00012586,2]
[355347998,1741072247767,-3070.0,0.00012587,2]
[355347999,1741072247776,-259.72780485,0.00012587,2]
[355348001,1741072247785,-591065.44910698,0.00012587,2]
[355348004,1741072247802,-1469.6911387,0.00012587,2]
[355348143,1741072249297,-152.98813602,0.0001248,2]
[355348145,1741072249307,-401.21386398,0.00012578,2]
[355348147,1741072249320,-98.78613602,0.00012578,2]
[355348149,1741072249330,-500.0,0.00012578,2]
[355348151,1741072249340,-325.30745216,0.00012578,2]
[355348155,1741072249376,-731.27254784,0.00012578,2]
[355348157,1741072249386,-163.90802416,0.00012578,2]
[355348159,1741072249396,-503.0383814,0.00012578,2]
[355348161,1741072249406,-513.45474978,0.00012578,2]
[355348163,1741072249416,-507.95218385,0.00012578,2]
[355348165,1741072249425,-500.0,0.00012579,2]
[355348167,1741072249435,-500.0,0.00012579,2]
[355348169,1741072249445,-2693.30859986,0.00012587,2]
[355348171,1741072249456,-3357.21305,0.00012587,2]
[355348181,1741072249536,-500.0,0.00012587,2]
[355348303,1741072250832,-897.58999998,0.00012587,2]
[355348306,1741072250853,-1298.10342144,0.00012587,2]
[355348839,1741072332222,-552.89,0.00011697,2]
[355348841,1741072605476,567.68,0.00020011,120]
[355348848,1741073108765,-550.0,0.00011,2]
[355348849,1741073108792,-550.0,0.00011183,2]
[355348851,1741073108820,-150.0,0.00011261,7]
[355348853,1741073108845,-2098.82,0.00011274,2]
[355348855,1741073108874,-3248.1289205,0.00011367,2]
[355348856,1741073108901,-500.0,0.00011367,3]
[355348857,1741073108928,-2000.0,0.00011414,2]
[355348858,1741073108956,-4907.78,0.00011522,2]
[355348859,1741073108983,-1119.2,0.00011538,2]
[355348860,1741073109010,-826.64,0.00011568,2]
[355348861,1741073109036,-200.0,0.00011578,2]
[355348862,1741073109063,-300.0,0.000116,4]
[355348863,1741073109090,-300.0,0.00011657,2]
[355348864,1741073109119,-600.0,0.000117,4]
[355348865,1741073109150,-649.4310795,0.000118,4]
[355348884,1741073297178,174.14,8.97e-05,2]
[355348891,1741073331700,-1000.0,0.00011213,2]
[355348892,1741073331753,-370.03,0.00011429,2]
[355348893,1741073331809,-370.03,0.00011483,2]
[355348894,1741073331862,-370.03,0.00011537,2]
[355348895,1741073331916,-370.03,0.00011592,2]
[355348896,1741073331968,-300.0,0.000116,4]
[355348897,1741073332022,-370.03,0.00011646,2]
[355348898,1741073332075,-370.03,0.000117,2]
[355348899,1741073332128,-600.0,0.000117,4]
[355348900,1741073332179,-370.03,0.00011754,2]
[355348901,1741073332231,-300.0,0.00011799,2]
[355348902,1741073332282,-2172.87416074,0.00011799,2]
[355348903,1741073332359,-841.64583926,0.00011799,2]
[355348904,1741073332412,-4292.13,0.00011799,2]
[355348905,1741073332468,-815.87,0.00011799,2]
[355348906,1741073332525,-150.0,0.000118,2]
[355348907,1741073332583,-863.43832148,0.000118,4]
[355348908,1741073332668,-136.56167852,0.000118,4]
[355348909,1741073332727,-1345.4633605,0.000118,2]
[355348910,1741073356718,-176.76,0.00011343,2]
[355348911,1741073356777,-2685.70792128,0.0001169,2]
[355348912,1741073356832,-4408.78010667,0.000118,2]
[355348913,1741073357349,-23.53653283,0.000118,2]
[355348914,1741073357404,-150.99,0.000118,2]
[355348915,1741073357704,-4600.42965972,0.000118,2]
[355348927,1741073381697,-250.0,0.00011337,2]
[355348928,1741073381752,-4987.41881783,0.000118,2]
[355348929,1741073416744,825.84,9.397e-05,2]
[355348936,1741073432059,-463.98,0.00011323,2]
[355348937,1741073432069,-56.43993916,0.00011661,2]
[355348938,1741073432082,-507.92886752,0.00011661,2]
[355348939,1741073432093,-261.47119332,0.00011661,2]
[355348940,1741073432103,-313.37152245,0.000118,2]
[355348941,1741073432113,-150.99,0.000118,2]
[355348942,1741073432123,-150.0,0.000118,3]
[355348943,1741073432135,-370.03,0.00011808,2]
[355348944,1741073432145,-150.0,0.0001185,2]
[355348945,1741073432154,-370.03,0.00011862,2]
[355348946,1741073432163,-150.0,0.000119,2]
[355348947,1741073432173,-1300.0,0.000119,4]
[355348948,1741073432183,-370.03,0.00011916,2]
[355348949,1741073432192,-370.03,0.00011971,2]
[355348950,1741073432202,-266.04,0.00011978,2]
[355348951,1741073432212,-6827.92,0.00011978,2]
[355348952,1741073432222,-370.03,0.00012025,2]
[355348953,1741073432232,-370.03,0.00012079,2]
[355348954,1741073432241,-777.81,0.000121,2]
[355348955,1741073432251,-245.5341807,0.00012106,2]
[355348956,1741073432261,-370.03,0.00012133,2]
[355348957,1741073432271,-2863.28031205,0.0001218,2]
[355348958,1741073432280,-370.03,0.00012187,2]
[355348959,1741073432293,-338.85838314,0.00012204,2]
[355348960,1741073432303,-1788.14206068,0.00012228,2]
[355348961,1741073432312,-370.03,0.00012241,2]
[355348962,1741073432322,-11349.81174448,0.00012259,2]
[355348963,1741073432331,-2419.86124954,0.00012276,2]
[355348964,1741073432341,-2419.86124954,0.00012276,2]
[355348965,1741073432351,-407.29517084,0.00012278,2]
[355348966,1741073432363,-251.38221559,0.00012278,2]
[355348967,1741073432384,-2204.58261357,0.00012278,2]
[355348968,1741073432394,-2050.1058,0.00012279,2]
[355348969,1741073432403,-150.0,0.00012279,2]
[355348970,1741073432413,-631.5796,0.0001228,2]
[355348971,1741073432423,-993.4244,0.0001228,2]
[355348972,1741073432432,-222.9919,0.0001228,2]
[355348973,1741073432441,-313.6098,0.0001228,2]
[355348974,1741073432451,-14316.3,0.00012287,2]
[355348975,1741073432460,-370.03,0.00012295,2]
[355348976,1741073432470,-1600.0,0.000123,4]
[355348977,1741073432480,-321.44425277,0.00012306,2]
[355348978,1741073432489,-2024.50661932,0.00012307,2]
[355348979,1741073432499,-321.44425268,0.00012326,2]
[355348980,1741073432508,-1008.1868376,0.00012335,2]
[355348981,1741073432518,-321.44425268,0.00012346,2]
[355348982,1741073432527,-370.03,0.0001235,2]
[355348983,1741073432536,-12297.15305578,0.00012365,2]
[355348985,1741073432545,-321.44425268,0.00012366,2]
[355348987,1741073432554,-23087.21876749,0.00012369,2]
[355348989,1741073432564,-14283.9716,0.00012379,2]
[355348991,1741073432574,-1000.0,0.00012379,2]
[355348994,1741073432594,-3114.521,0.00012379,2]
[355348996,1741073432604,-13.79450504,0.00012379,2]
[355348997,1741073432622,-157.74549496,0.00012379,2]
[355348998,1741073432632,-167.85662379,0.00012379,2]
[355348999,1741073432642,-170.71825195,0.00012379,2]
[355349000,1741073432652,-328.31324698,0.00012379,2]
[355349001,1741073432662,-170.6256772,0.0001238,2]
[355349002,1741073432672,-2555.197,0.0001238,2]
[355349003,1741073432682,-18082.2102,0.0001238,2]
[355349004,1741073432691,-232.07260876,0.0001238,2]
[355349005,1741073432701,-500.0,0.00012384,2]
[355349006,1741073432710,-10914.7340615,0.00012385,2]
[355349007,1741073432720,-157.60893135,0.00012387,2]
[355349008,1741073432730,-300.0,0.000124,4]
[355349009,1741073432739,-1006.0,0.000124,2]
[355349010,1741073432749,-370.03,0.00012404,2]
[355349011,1741073432759,-170.71825195,0.00012406,2]
[355349012,1741073432768,-170.71825195,0.00012433,2]
[355349013,1741073432778,-1218.10733013,0.00012451,2]
[355349014,1741073432788,-370.03,0.00012458,2]
[355349015,1741073432798,-2709.13805,0.0001246,2]
[355349016,1741073432807,-170.71825195,0.0001246,2]
[355349017,1741073432817,-150.28964764,0.0001247,2]
[355349018,1741073432827,-500.0,0.00012473,2]
[355349019,1741073432836,-500.0,0.00012477,2]
[355349020,1741073432846,-500.0,0.00012477,2]
[355349021,1741073432856,-500.0,0.00012477,2]
[355349022,1741073432865,-500.0,0.00012477,2]
[355349023,1741073432875,-250.43314691,0.00012477,2]
[355349024,1741073432887,-500.0,0.00012477,2]
[355349025,1741073432897,-500.0,0.00012477,2]
[355349026,1741073432906,-224.6862013,0.00012477,2]
[355349027,1741073432916,-500.0,0.00012477,2]
[355349028,1741073432925,-500.0,0.00012477,2]
[355349029,1741073432935,-653.08,0.00012477,2]
[355349030,1741073432944,-511.02718804,0.00012477,2]
[355349031,1741073432953,-2035.15,0.00012477,2]
[355349032,1741073432963,-500.0,0.00012477,2]
[355349033,1741073432972,-500.0,0.00012477,2]
[355349034,1741073432982,-507.56,0.00012477,2]
[355349035,1741073432991,-500.0,0.00012477,2]
[355349036,1741073433001,-1300.23,0.00012477,2]
[355349037,1741073433011,-500.0,0.00012477,2]
[355349038,1741073433020,-545.33,0.00012477,2]
[355349039,1741073433030,-500.0,0.00012477,2]
[355349040,1741073433039,-500.0,0.00012477,2]
[355349041,1741073433049,-1448.51,0.00012478,2]
[355349042,1741073433059,-698.26,0.00012478,2]
[355349043,1741073433068,-889.44,0.00012478,2]
[355349044,1741073433079,-8336.64,0.00012478,2]
[355349045,1741073433089,-1227.57,0.00012478,2]
[355349046,1741073433098,-1485.005174,0.00012478,2]
[355349047,1741073433108,-3145.46,0.00012478,2]
[355349048,1741073433119,-1796.94,0.00012478,2]
[355349049,1741073433130,-1057.6,0.00012478,2]
[355349050,1741073433140,-2221.531095,0.00012478,2]
[355349051,1741073433150,-2721.64,0.00012478,2]
[355349052,1741073433160,-162.866886,0.00012478,2]
[355349053,1741073433170,-3549.53,0.00012478,2]
[355349054,1741073433179,-151.788438,0.00012478,2]
[355349055,1741073433189,-3022.01,0.00012478,2]
[355349056,1741073433199,-2737.99,0.00012478,2]
[355349057,1741073433209,-688.67,0.00012478,2]
[355349058,1741073433219,-6150.91,0.00012478,2]
[355349059,1741073433229,-2361.13,0.00012478,2]
[355349060,1741073433239,-1226.6,0.00012478,2]
[355349061,1741073433249,-3062.17,0.00012478,2]
[355349062,1741073433259,-1313.9,0.00012478,2]
[355349063,1741073433269,-2154.92,0.00012478,2]
[355349064,1741073433281,-1794.09,0.00012478,2]
[355349065,1741073433294,-1697.58,0.00012478,2]
[355349066,1741073433304,-4575.37,0.00012478,2]
[355349067,1741073433315,-1556.82,0.00012478,2]
[355349068,1741073433327,-3555.91,0.00012478,2]
[355349069,1741073433337,-1277.61,0.00012478,2]
[355349070,1741073433347,-3308.33,0.00012478,2]
[355349071,1741073433357,-3611.08,0.00012478,2]
[355349072,1741073433367,-2692.98,0.00012478,2]
[355349073,1741073433380,-2005.47,0.00012478,2]
[355349074,1741073433392,-500.0,0.00012478,2]
[355349075,1741073433402,-2159.62,0.00012478,2]
[355349076,1741073433413,-3358.58,0.00012478,2]
[355349077,1741073433671,-805.25,0.00012478,2]
[355349078,1741073433683,-500.0,0.00012478,2]
[355349079,1741073433694,-3362.86,0.00012478,2]
[355349080,1741073433704,-2547.15,0.00012478,2]
[355349081,1741073433714,-1835.96,0.00012478,2]
[355349082,1741073433724,-942.13,0.00012478,2]
[355349083,1741073433734,-14314.77,0.00012478,2]
[355349084,1741073433744,-2697.92,0.00012478,2]
[355349085,1741073433754,-511.91219026,0.00012478,2]
[355349086,1741073433764,-3323.61,0.00012478,2]
[355349087,1741073433775,-3446.7,0.00012478,2]
[355349088,1741073433785,-2581.65,0.00012478,2]
[355349089,1741073433795,-2512.15,0.00012478,2]
[355349090,1741073433805,-1901.91,0.00012478,2]
[355349091,1741073433815,-2726.0,0.00012478,2]
[355349092,1741073433825,-3460.95,0.00012478,2]
[355349093,1741073433835,-500.0,0.00012478,2]
[355349094,1741073433844,-1546.91,0.00012478,2]
[355349095,1741073433854,-1824.32,0.00012478,2]
[355349096,1741073433864,-669.9,0.00012478,2]
[355349097,1741073433873,-2794.04,0.00012478,2]
[355349098,1741073433891,-301.5149,0.00012478,2]
[355349099,1741073433901,-2112.2205,0.00012478,2]
[355349100,1741073433911,-849.7141,0.00012478,2]
[355349101,1741073433921,-654.7387,0.00012478,2]
[355349102,1741073433931,-1031.20056085,0.00012479,3]
[355349103,1741073433942,-1031.20056085,0.00012479,3]
[355349104,1741073433952,-299.14470654,0.00012479,2]
[355349105,1741073433963,-500.0,0.00012479,2]
[355349106,1741073433974,-500.0,0.00012479,2]
[355349107,1741073433985,-500.0,0.00012479,2]
[355349108,1741073433995,-500.0,0.00012479,2]
[355349109,1741073434005,-500.0,0.00012479,2]
[355349110,1741073434015,-500.0,0.00012479,2]
[355349111,1741073434025,-500.0,0.00012479,2]
[355349112,1741073434035,-500.0,0.00012479,2]
[355349113,1741073434044,-500.0,0.00012479,2]
[355349114,1741073434054,-500.0,0.00012479,2]
[355349115,1741073434064,-176.52252107,0.00012479,2]
[355349116,1741073434074,-500.0,0.00012479,2]
[355349117,1741073434083,-500.0,0.00012479,2]
[355349118,1741073434094,-500.0,0.00012479,2]
[355349119,1741073434103,-500.0,0.00012479,2]
[355349120,1741073434113,-500.0,0.00012479,2]
[355349121,1741073434122,-500.0,0.00012479,2]
[355349122,1741073434137,-500.0,0.00012479,2]
[355349123,1741073434148,-450.0,0.00012479,2]
[355349124,1741073434157,-500.0,0.00012479,2]
[355349125,1741073434167,-500.0,0.00012479,2]
[355349126,1741073434176,-500.0,0.00012479,2]
[355349127,1741073434185,-500.0,0.00012479,2]
[355349128,1741073434196,-500.0,0.00012479,2]
[355349129,1741073434206,-1097.16697903,0.00012479,2]
[355349130,1741073434215,-500.0,0.00012479,2]
[355349131,1741073434225,-550.0,0.00012479,2]
[355349132,1741073434235,-221.93155173,0.00012479,2]
[355349133,1741073434245,-500.0,0.00012479,2]
[355349134,1741073434255,-500.0,0.00012479,2]
[355349135,1741073434265,-1946.11,0.00012479,2]
[355349136,1741073434275,-502.6129454,0.00012479,2]
[355349137,1741073434288,-500.0,0.00012479,2]
[355349138,1741073434300,-500.0,0.00012479,2]
[355349139,1741073434310,-1119.74,0.00012479,2]
[355349140,1741073434320,-500.0,0.00012479,2]
[355349141,1741073434331,-1256.92,0.00012479,2]
[355349142,1741073434341,-647.3344165,0.00012479,2]
[355349143,1741073434351,-500.0,0.00012479,2]
[355349144,1741073434361,-500.0,0.00012479,2]
[355349145,1741073434373,-500.0,0.00012479,2]
[355349146,1741073434385,-1432.85,0.00012479,2]
[355349147,1741073434395,-505.11474053,0.00012479,2]
[355349148,1741073434404,-500.0,0.00012479,2]
[355349149,1741073434414,-500.0,0.00012479,2]
[355349150,1741073434423,-492.00013696,0.00012479,2]
[355349151,1741073434433,-500.0,0.00012479,2]
[355349152,1741073434442,-500.0,0.00012479,2]
[355349153,1741073434451,-610.07,0.00012479,2]
[355349154,1741073434462,-500.0,0.00012479,2]
[355349155,1741073434472,-500.0,0.00012479,2]
[355349156,1741073434482,-500.0,0.00012479,2]
[355349157,1741073434491,-500.0,0.00012479,2]
[355349158,1741073434502,-1214.48,0.00012479,2]
[355349159,1741073434511,-500.0,0.00012479,2]
[355349160,1741073434521,-500.0,0.00012479,2]
[355349161,1741073434531,-501.55729622,0.00012479,2]
[355349162,1741073434540,-500.0,0.00012479,2]
[355349163,1741073434550,-500.0,0.00012479,2]
[355349164,1741073434560,-501.53363928,0.00012479,2]
[355349165,1741073434570,-1545.3,0.00012479,2]
[355349166,1741073434580,-500.0,0.00012479,2]
[355349167,1741073434590,-505.34027584,0.00012479,2]
[355349168,1741073434600,-1022.06,0.00012479,2]
[355349169,1741073434610,-500.0,0.00012479,2]
[355349170,1741073434621,-186.79775661,0.00012479,2]
[355349171,1741073434636,-500.0,0.00012479,2]
[355349172,1741073434646,-500.0,0.00012479,2]
[355349173,1741073434655,-500.0,0.00012479,2]
[355349174,1741073434665,-500.0,0.00012479,2]
[355349175,1741073434674,-1032.35,0.00012479,2]
[355349176,1741073434684,-934.35,0.00012479,2]
[355349177,1741073434693,-500.0,0.00012479,2]
[355349178,1741073434703,-500.0,0.00012479,2]
[355349179,1741073434713,-860.49,0.00012479,2]
[355349180,1741073434722,-1481.65,0.00012479,2]
[355349181,1741073434732,-500.0,0.00012479,2]
[355349182,1741073434742,-500.0,0.00012479,2]
[355349183,1741073434751,-1064.15,0.00012479,2]
[355349184,1741073434760,-500.0,0.00012479,2]
[355349185,1741073434770,-500.0,0.00012479,2]
[355349186,1741073434780,-828.79,0.00012479,2]
[355349187,1741073434789,-508.4498912,0.00012479,2]
[355349188,1741073434799,-500.0,0.00012479,2]
[355349189,1741073434809,-500.0,0.00012479,2]
[355349190,1741073434819,-500.0,0.00012479,2]
[355349191,1741073434828,-252.42474189,0.00012479,2]
[355349192,1741073434844,-247.57525811,0.00012479,2]
[355349193,1741073434853,-500.0,0.00012479,2]
[355349194,1741073434863,-500.0,0.00012479,2]
[355349195,1741073434873,-500.0,0.00012479,2]
[355349196,1741073434884,-500.0,0.00012479,2]
[355349197,1741073434894,-1348.1,0.00012479,2]
[355349198,1741073434904,-500.0,0.00012479,2]
[355349199,1741073434913,-500.0,0.00012479,2]
[355349200,1741073434923,-869.83,0.00012479,2]
[355349201,1741073434932,-502.93559593,0.00012479,2]
[355349202,1741073434943,-500.0,0.00012479,2]
[355349203,1741073434952,-500.0,0.00012479,2]
[355349204,1741073434962,-500.0,0.00012479,2]
[355349205,1741073434972,-500.0,0.00012479,2]
[355349206,1741073434982,-332.70697929,0.00012479,2]
[355349207,1741073434992,-962.71,0.00012479,2]
[355349208,1741073435002,-500.0,0.00012479,2]
[355349209,1741073435011,-501.49221747,0.00012479,2]
[355349210,1741073435021,-213.51045595,0.00012479,2]
[355349211,1741073435030,-500.0,0.00012479,2]
[355349212,1741073435040,-859.37,0.00012479,2]
[355349213,1741073435049,-500.0,0.00012479,2]
[355349214,1741073435059,-905.18,0.00012479,2]
[355349215,1741073435068,-500.0,0.00012479,2]
[355349216,1741073435078,-1391.4,0.00012479,2]
[355349217,1741073435087,-500.0,0.00012479,2]
[355349218,1741073435096,-626.46,0.00012479,2]
[355349219,1741073435106,-501.31796272,0.00012479,2]
[355349220,1741073435116,-500.0,0.00012479,2]
[355349221,1741073435125,-500.0,0.00012479,2]
[355349222,1741073435136,-500.0,0.00012479,2]
[355349223,1741073435146,-500.0,0.00012479,2]
[355349224,1741073435155,-1476.18,0.00012479,2]
[355349225,1741073435164,-500.0,0.00012479,2]
[355349226,1741073435175,-551.84435973,0.00012479,2]
[355349227,1741073435184,-501.36384016,0.00012479,2]
[355349228,1741073435194,-500.0,0.00012479,2]
[355349229,1741073435204,-509.33296802,0.00012479,2]
[355349230,1741073435213,-500.0,0.00012479,2]
[355349231,1741073435223,-500.0,0.00012479,2]
[355349232,1741073435233,-500.0,0.00012479,2]
[355349233,1741073435242,-760.92,0.00012479,2]
[355349234,1741073435251,-500.0,0.00012479,2]
[355349235,1741073435261,-500.0,0.00012479,2]
[355349236,1741073435271,-369.84979319,0.00012479,2]
[355349237,1741073435281,-500.0,0.00012479,2]
[355349238,1741073435294,-500.0,0.00012479,2]
[355349239,1741073435304,-533.85262723,0.00012479,2]
[355349240,1741073435314,-511.49448544,0.00012479,2]
[355349241,1741073435324,-500.0,0.00012479,2]
[355349242,1741073435334,-513.09652697,0.00012479,2]
[355349243,1741073435344,-500.0,0.00012479,2]
[355349244,1741073435354,-526.72,0.00012479,2]
[355349245,1741073435364,-500.0,0.00012479,2]
[355349246,1741073435373,-968.67,0.00012479,2]
[355349247,1741073435384,-504.03916961,0.00012479,2]
[355349248,1741073435393,-1437.54,0.00012479,2]
[355349249,1741073435403,-500.0,0.00012479,2]
[355349250,1741073435413,-503.26169479,0.00012479,2]
[355349251,1741073435423,-893.43,0.00012479,2]
[355349252,1741073435432,-500.0,0.00012479,2]
[355349253,1741073435442,-500.0,0.00012479,2]